Cogmind - Beta 14 @@@ ROGUE MODE // 2024.08.12 @ 11:54:46 Player: dwarfinator Result: Destroyed by 7V-RTL with Railgun Performance ------------- Evolutions (3) 1500 Regions Visited (14) 2800 Robots Destroyed (331) 1655 Value Destroyed (10403) 10403 Prototype IDs (50) 1000 Alien Tech Used (0) 0 Bonus (-2624) -2624 TOTAL SCORE: 14734 Bonus ------- High Alert Combat Kills 759 Follower Combat Kills 161 Entered Garrisons 200 Aligned with FarCom 300 Met Imprinter 300 Acquired ECA 300 Friendly Fire -4644 Cogmind --------- Core Integrity 0/700 Matter 192/300 Energy 73/100 System Corruption 22% Temperature Cool (0) Movement Core (1700) Ox33 Location -7/Zion Parts ------- > --- POWER (1) -------- (None) > --- PROPULSION (4) --- (None) > --- UTILITY (4) ------ Coolant Injector Huge Storage Unit Makeshift Light Armor Plating Hardlight Generator > --- WEAPON (4) ------- Gatling Laser Makeshift Shrapnel Gun Makeshift Axe Makeshift Spear > --- INVENTORY (25) --- High-capacity Battery (0) Structural Scanner Encrypted Comm Array Transmission Jammer Improved Trap Extractor (4/6 EM Surge) Recalibrator Hacking Drone Bay (1/1) Gatling Laser Cooled Particle Cannon Shock Bomb Launcher Proton Missile Launcher Improved Grenade Launcher Datajack Great Maul Peak State ------------ > --- POWER ------------ Antimatter Reactor > --- PROPULSION ------- Armored Treads Armored Treads Heavy Treads > --- UTILITY ---------- Advanced Cooling System Coolant Injector Huge Storage Unit Improved Light Armor Plating > --- WEAPON ----------- Storm Laser > --- INVENTORY -------- Angular Momentum Engine Armored Treads Armored Treads Armored Treads Medium Treads Medium Treads Medium Treads Compact Wheel Cryofiber Web High-capacity Battery Compact Battery Makeshift Light Armor Plating Layered Medium Armor Plating Hardlight Generator Improved Trap Extractor Gatling Laser Gatling Laser Gatling Laser Particle Cannon Heavy Ion Cannon Cooled Particle Cannon Shock Bomb Launcher Proton Missile Launcher Improved Grenade Launcher [Rating: 71] Favorites ----------- Power Cooled Ion Engine Engine Cooled Ion Engine Reactor Antimatter Reactor Propulsion Light Treads Treads Light Treads Leg Carbon-fiber Leg Wheel Compact Wheel Utility Huge Storage Unit Device Improved Heat Sink Storage Huge Storage Unit Processor Advanced Targeting Computer Hackware Authchip [Weapon] Protection Hardened Medium Armor Plating Weapon Gatling Laser Energy Gun Gatling Laser Energy Cannon Particle Cannon Ballistic Gun Makeshift Shrapnel Gun Launcher Improved Grenade Launcher Impact Weapon Great Maul Slashing Weapon Makeshift Axe Piercing Weapon Makeshift Spear Special Melee Weapon Datajack Build | -11 -10 -10 -9 -9 -9 -8 -8 -8 -7 -7 -7 -7 -7 -7 ------- Run | Yrd Mat Min Mat Min Exi Min Mat Gar Fac Was Fac Low Low Zio Slots Evolved 6 | . . . 2 . . . 2 . 2 . . . . . Power . | . . . . . . . . . . . . . . . Propulsion 2 | . . . . . . . . . 2 . . . . . Utility 2 | . . . . . . . 2 . . . . . . . Weapon 2 | . . . 2 . . . . . . . . . . . Parts Attached 342 | 7 14 13 27 5 7 7 64 32 8 16 24 50 18 50 Power 11 | 1 4 . 1 . . . 2 . . . . . . 3 Engine 10 | 1 4 . 1 . . . 2 . . . . . . 2 Core . | . . . . . . . . . . . . . . . Reactor 1 | . . . . . . . . . . . . . . 1 Propulsion 87 | 2 1 1 8 3 2 2 9 17 2 3 3 18 8 8 Treads 75 | 2 1 1 8 3 2 2 9 8 2 3 3 18 7 6 Leg 1 | . . . . . . . . . . . . . . 1 Wheel 11 | . . . . . . . . 9 . . . . 1 1 Hover . | . . . . . . . . . . . . . . . Flight . | . . . . . . . . . . . . . . . Utility 121 | 2 7 7 3 . 2 1 20 3 2 5 15 27 5 22 Device 76 | 1 3 6 1 . 2 1 11 1 1 4 9 20 3 13 Storage 15 | 1 4 . 2 . . . 3 . . . . 2 2 1 Processor 4 | . . . . . . . 1 . 1 . 1 . . 1 Hackware 1 | . . . . . . . . . . . 1 . . . Protection 25 | . . 1 . . . . 5 2 . 1 4 5 . 7 Artifact . | . . . . . . . . . . . . . . . Weapon 123 | 2 2 5 15 2 3 4 33 12 4 8 6 5 5 17 Energy Gun 69 | 2 2 3 13 2 . 4 25 6 2 1 . 1 1 7 Energy Cannon 21 | . . . . . . . 5 1 . 4 3 3 2 3 Ballistic Gun 2 | . . . . . 1 . . . . . . . . 1 Ballistic Cannon . | . . . . . . . . . . . . . . . Launcher 12 | . . . 1 . . . 1 4 . 1 . 1 2 2 Special Weapon . | . . . . . . . . . . . . . . . Impact Weapon 7 | . . . . . . . . 1 1 2 3 . . . Slashing Weapon 2 | . . . . . . . . . . . . . . 2 Piercing Weapon 1 | . . . . . . . . . . . . . . 1 Special Melee Weapon 9 | . . 2 1 . 2 . 2 . 1 . . . . 1 Unidentified Prototypes 4 | . . . 1 . . . 2 . . . . . . 1 Corrupted Parts 4 | . . . . . . . . . . . . . . 4 System Corruption 16 | . . . . . . . . . . . . . . 16 Parts Lost 50 | . 1 . 8 1 . 2 9 . . . . 4 1 24 Power 5 | . . . . . . . 1 . . . . . . 4 Propulsion 17 | . . . 3 . . 2 . . . . . 1 . 11 Utility 8 | . . . 1 . . . 1 . . . . 2 . 4 Weapon 20 | . 1 . 4 1 . . 7 . . . . 1 1 5 Highest Loss Streak 16 | . 1 . 2 1 . 2 2 . . . . 2 1 16 To Critical Strikes 2 | . . . . . . . . . . . . . . 2 Average Slot Usage (%) 92 | . 99 100 99 100 63 100 99 100 99 91 84 84 91 79 Engine 9 | . 14 14 11 11 11 11 8 9 7 7 7 7 7 6 Treads 20 | . 27 28 21 22 22 22 17 10 22 18 15 15 22 22 Device 15 | . 14 13 10 11 10 11 17 18 14 14 15 15 22 18 Storage 9 | . 14 14 11 11 11 11 9 9 7 7 7 7 7 8 Protection 3 | . . . . . . . 8 8 7 7 6 6 . 1 Energy Gun 24 | . 28 26 43 44 . 43 31 35 29 15 15 2 7 10 Energy Cannon 4 | . . . . . . . 4 . . 13 14 27 20 . Special Melee Weapon 1 | . . 1 . . 9 . . . . . . . . 3 Peak Build Rating 71 | 8 9 13 22 24 49 30 52 43 47 64 64 66 62 71 Average Rating 38 | 6 7 11 19 22 18 29 33 40 46 53 60 60 55 57 On Entrance 32 | . 8 9 12 22 24 20 30 41 41 47 62 61 61 56 Naked Turns . | . . . . . . . . . . . . . . . Heaviest Build 128 | 15 49 52 102 101 90 101 114 115 112 114 114 123 122 128 Greatest Support 140 | 40 40 40 40 40 40 40 40 40 60 140 140 140 140 110 Greatest Overweight (x) 37 | 1 1 1 5 2 2 2 5 7 6 37 . . 1 7 Average Overweight (x) 1 | . . 1 2 2 2 2 2 5 4 3 . . . . Largest Inventory Capacity 40 | 8 25 20 25 25 25 25 40 25 25 25 25 25 25 25 Average Capacity 23 | 7 13 20 24 25 25 25 25 25 25 25 25 25 25 25 Most Carried 25 | 8 18 20 25 25 25 25 25 25 25 25 25 25 25 25 Average Carried 22 | 4 10 19 24 24 24 23 23 24 24 24 24 23 24 23 Final Capacity 25 | 8 20 20 25 25 25 25 25 25 25 25 25 25 25 25 Final Carried 25 | 8 18 20 25 25 25 25 25 25 25 25 25 25 25 14 Class Distribution -------------------- 22% | Scavenger-Skirmisher 22% | Skirmisher 14% | Scavenger-Gunner 14% | Mutant 10% | Scavenger-Mutant 5% | Scavenger-Tank 4% | Gunner 3% | Tank Dominant Class ---------------- Mutant | -10/Materials Mutant | -10/Mines Scavenger-Gunner | -9/Materials Scavenger-Gunner | -9/Mines Mutant | -9/Exiles Skirmisher | -8/Mines Scavenger-Skirmisher | -8/Materials Skirmisher | -8/Garrison Scavenger-Skirmisher | -7/Factory Skirmisher | -7/Waste Skirmisher | -7/Factory Tank | -7/Lower Caves Scavenger-Skirmisher | -7/Lower Caves Scavenger-Mutant | -7/Zion Resources | -11 -10 -10 -9 -9 -9 -8 -8 -8 -7 -7 -7 -7 -7 -7 ----------- Run | Yrd Mat Min Mat Min Exi Min Mat Gar Fac Was Fac Low Low Zio Matter Collected 4134 | 368 140 135 332 82 . 250 623 421 60 180 189 579 383 392 Remotely . | . . . . . . . . . . . . . . . Salvage Created 12192 | 330 752 189 1839 434 . 441 2298 769 778 806 1026 1183 548 799 Parts 578 | 28 41 4 111 17 . 20 93 46 34 15 46 45 26 52 Haulers Intercepted 14 | . 2 . 4 . . . 4 . 2 . 2 . . . Recyclers Shooed 6 | 1 . . 4 . . . . . . . 1 . . . Parts Field Recycled . | . . . . . . . . . . . . . . . Retrieved Matter . | . . . . . . . . . . . . . . . Parts Self-Destructed 70 | . . . . . . . . . . . . 43 24 3 Prevented . | . . . . . . . . . . . . . . . Kills | -11 -10 -10 -9 -9 -9 -8 -8 -8 -7 -7 -7 -7 -7 -7 ------- Run | Yrd Mat Min Mat Min Exi Min Mat Gar Fac Was Fac Low Low Zio Combat Hostiles Destroyed 218 | . 16 4 35 10 . 9 49 24 11 . 16 22 15 7 Guns 150 | . 13 4 31 10 . 9 40 16 11 . 10 2 . 4 Cannons 29 | . . . . . . . 4 . . . 2 16 7 . AOE 27 | . . . 2 . . . 4 7 . . . 4 8 2 Classes Destroyed 25 | 3 5 1 2 1 . 1 2 1 2 2 . 2 1 2 Worker 19 | 4 1 . 1 1 . 6 1 . 5 . . . . . Builder 3 | . . . . . . . 1 . . . 2 . . . Tunneler 11 | 9 . 1 . . . 1 . . . . . . . . Hauler 14 | . 2 . 4 . . . 4 . 2 . 2 . . . Recycler 9 | 1 . 1 4 . . . 2 . . . 1 . . . Minesweeper 4 | . . . . . . . . . . . . 4 . . Mechanic 2 | . . . . . . . . . 1 . 1 . . . Operator 9 | . 3 . 4 . . . 1 . . . 1 . . . Watcher 13 | . 3 . 5 . . . 4 . . . 1 . . . Swarmer 59 | . 6 . 11 7 . . 14 9 . . . 4 8 . Saboteur 4 | . . . . . . . . 4 . . . . . . Grunt 87 | . 10 2 13 2 . 5 21 7 6 . 7 10 4 . Brawler 2 | . . . . . . . . . . . . 2 . . Duelist 7 | . . . . 1 . 1 . . 2 . . 3 . . Protector 1 | . . . 1 . . . . . . . . . . . Sentry 27 | . . . 10 . . . 10 3 . . 2 1 1 . Hunter 11 | . . . . . . 3 3 1 2 . 2 . . . Programmer 8 | . . . . . . . . . 1 . 5 1 1 . Heavy 1 | . . . . . . . 1 . . . . . . . Behemoth 1 | . . . . . . . . . . . . . 1 . Zionite 12 | . . . . . . . . . . . . . . 12 Decomposer 1 | . . . . . . . . . . . . . 1 . Tinkerer 4 | . . . . . . . . . . . . . . 4 Assembled 2 | . . 2 . . . . . . . . . . . . Wasp 5 | . . . . . . . . . . 5 . . . . Thug 9 | . . . . . . . . . . 8 . . . 1 Savage 1 | . . . . . . . . . . 1 . . . . Butcher 1 | . . . . . . . . . . 1 . . . . Martyr 3 | . . . . . . . . . . 3 . . . . Guerrilla 1 | . . . . . . . . . 1 . . . . . Wizard 1 | . . . . . . . . . . . . . . 1 Mutant 6 | . . . . . . . . . . . . 1 . 5 Best Kill Streak 8 | 4 4 2 6 4 . 3 8 5 6 . 3 7 4 7 Combat Bots Only 8 | . 4 2 6 4 . 3 8 5 4 . 3 7 4 6 Max Kills in Single Turn 4 | 1 1 1 2 2 . 1 3 4 3 1 2 2 4 3 Gunslinging 1 | . . . . 1 . . 1 1 1 . . . . . Exploded 4 | . . . 1 . . . 3 4 . . . 2 4 2 Melee . | . . . . . . . . . . . . . . . Uniques/NPCs Destroyed . | . . . . . . . . . . . . . . . Combat | -11 -10 -10 -9 -9 -9 -8 -8 -8 -7 -7 -7 -7 -7 -7 -------- Run | Yrd Mat Min Mat Min Exi Min Mat Gar Fac Was Fac Low Low Zio Hostile Shots Fired 921 | . 68 23 153 31 . 42 120 36 2 . 31 92 46 277 Missed 220 | . 16 6 53 9 . 8 26 13 1 . 6 15 12 55 Damage Taken 11775 | . 519 258 1150 201 . 571 1506 291 14 . 404 1487 649 4725 Core 1369 | . 105 61 192 11 . 82 156 44 . . 16 61 122 519 Absorbed by Shields 8 | . . . . . . . . . . . . . . 8 Reduced by Siege Mode 202 | . . . . . . . . . . . 8 140 38 16 Regen/Repaired (Parts) 789 | . 152 . 76 . . . 17 . . 210 334 . . . Core Remaining (%) 56 | 100 . 33 . . . 28 . 63 . . . . . . Volleys Fired 599 | 24 78 21 104 20 . 29 88 62 18 . 33 50 18 54 Largest 4 | 2 2 2 4 4 . 4 4 4 4 . 4 4 4 3 Hottest 320 | 100 100 100 224 224 . 252 320 271 271 . 296 303 303 250 Shots Fired 1823 | 48 155 42 400 78 . 105 335 139 72 . 122 182 65 80 Gun 1488 | 48 155 42 398 78 . 105 309 128 72 . 58 18 16 61 Cannon 311 | . . . . . . . 24 . . . 64 162 46 15 Launcher 24 | . . . 2 . . . 2 11 . . . 2 3 4 Special . | . . . . . . . . . . . . . . . Kinetic . | . . . . . . . . . . . . . . . Thermal 1796 | 48 152 42 398 78 . 105 333 128 72 . 122 180 62 76 Explosive 15 | . . . 2 . . . 2 6 . . . 2 3 . Electromagnetic 12 | . 3 . . . . . . 5 . . . . . 4 Robot Hit Streak 33 | 10 11 8 13 10 . 15 21 12 9 . 20 33 16 11 Robot Miss Streak 6 | 3 3 3 5 4 . 2 4 3 5 . 3 3 2 6 Penetration Max . | . . . . . . . . . . . . . . . Secondary Targets 17 | . 3 . 2 2 . 1 4 2 3 . . . . . Max Gunslinging Chain 1 | . 1 . 1 1 . 1 1 1 1 . . . . . Shots Hit Robots 1184 | 30 103 27 227 29 3 69 214 63 48 32 82 124 31 102 Core Hits 567 | 14 36 12 79 16 . 25 105 46 38 3 51 48 21 73 Critical Kills 1 | . . . . . . . . . . . 1 . . . Critical Parts Destroyed 6 | . . . . . . . . . . 6 . . . . Critical Strikes 65 | 4 9 3 14 4 . 2 13 3 2 8 1 . . 2 Burn 54 | 4 9 3 14 4 . 2 13 3 2 . . . . . Meltdown 1 | . . . . . . . . . . . 1 . . . Smash 8 | . . . . . . . . . . 8 . . . . Sever 1 | . . . . . . . . . . . . . . 1 Impale 1 | . . . . . . . . . . . . . . 1 Melee Attacks 81 | . . 1 . . 3 . . 1 3 32 3 . . 38 Impact 38 | . . . . . . . . 1 2 32 3 . . . Slashing 7 | . . . . . . . . . . . . . . 7 Piercing 23 | . . . . . . . . . . . . . . 23 Sneak Attacks 45 | . . 1 . . 3 . . . 1 32 . . . 8 Combat Hostiles . | . . . . . . . . . . . . . . . Follow-up Attacks 3 | . . . . . . . . . . . . . . 3 Damage Inflicted 29854 | 389 1333 365 3431 474 . 1216 4098 1614 1162 2681 2223 3825 1647 5396 Guns 18269 | 389 1333 322 3151 427 . 1176 3414 1340 1162 . 1167 404 157 3827 Cannons 5750 | . . . . . . . 405 . . . 1014 3112 961 258 Explosions 2178 | . . . 260 . . . 226 274 . . . 309 529 580 Melee 3412 | . . . . . . . . . . 2681 . . . 731 Ramming 245 | . . 43 20 47 . 40 53 . . . 42 . . . Kinetic . | . . . . . . . . . . . . . . . Thermal 24079 | 389 1290 322 3151 427 . 1176 3819 1340 1162 . 2181 3516 1118 4188 Explosive 1598 | . . . 260 . . . 226 274 . . . 309 529 . Electromagnetic 520 | . 43 . . . . . . . . . . . . 477 Impact 2681 | . . . . . . . . . . 2681 . . . . Slashing 219 | . . . . . . . . . . . . . . 219 Piercing 512 | . . . . . . . . . . . . . . 512 Highest Corruption 22 | . . . 2 2 2 2 . . . . 4 4 4 22 Average Corruption 3 | . . . 2 2 2 2 . . . . 2 4 4 7 Corruption Purged . | . . . . . . . . . . . . . . . Corruption Blocked . | . . . . . . . . . . . . . . . Effects 245 | . . . 38 22 13 21 . . . . 13 40 47 51 Message Errors 69 | . . . 8 7 4 5 . . . . 2 9 12 22 Matter Fused 62 | . . . 11 4 4 6 . . . . 3 14 10 10 Heat Flow Errors 25 | . . . 3 3 1 3 . . . . 4 4 5 2 Energy Discharges 24 | . . . 6 3 2 1 . . . . . 4 3 5 Parts Fused 4 | . . . 1 . . . . . . . . . 2 1 Data Loss (minor) 32 | . . . 3 4 1 3 . . . . 2 6 8 5 Data Loss (major) 11 | . . . 1 1 1 1 . . . . 2 1 2 2 Misfires 7 | . . . 2 . . . . . . . . . 3 2 Alerts 5 | . . . 2 . . . . . . . . 1 1 1 Misdirections 1 | . . . . . . . . . . . . . . 1 Weapon Failures 5 | . . . 1 . . 2 . . . . . 1 1 . Overload Shots 44 | . . . . . . . . . . . . 30 12 2 Effects 4 | . . . . . . . . . . . . 2 2 . Heat Surge 4 | . . . . . . . . . . . . 2 2 . Overflow Damage 1449 | . . . . 5 . 6 48 . . 1090 . 180 113 7 Projectiles 191 | . . . . . . . 11 . . . . 178 2 . Explosions 145 | . . . . . . . 25 . . . . 2 111 7 Melee 1113 | . . . . 5 . 6 12 . . 1090 . . . . Knockbacks 16 | . . . . . . . . . . 16 . . . . Impact 16 | . . . . . . . . . . 16 . . . . Kinetic . | . . . . . . . . . . . . . . . Secondary . | . . . . . . . . . . . . . . . Self-Inflicted Damage 178 | . . . . . . . 63 17 . . . . . 98 Shots 7 | . . . . . . . 1 1 . . . . . 5 Rammed 28 | . 2 5 2 3 . 4 6 . . . 6 . . . Targets Rammed 33 | . 2 6 3 4 . 4 8 . . . 6 . . . Kicked . | . . . . . . . . . . . . . . . Crushed 5 | . . 1 1 1 . . 2 . . . . . . . Highest Temperature 430 | 196 259 69 429 366 72 395 369 179 6 . 430 292 210 300 Average Temperature 96 | 56 81 39 95 121 51 149 94 61 3 . 93 102 73 99 Received Heat Transfer 3154 | . 171 118 411 45 . 252 450 108 9 . 66 477 153 894 Effects 14 | . 1 . 4 1 . 4 3 . . . 1 . . . Shutdowns 1 | . . . 1 . . . . . . . . . . . Energy Bleed 7 | . 1 . 1 1 . . 3 . . . 1 . . . Interference 5 | . . . 2 . . 3 . . . . . . . . Matter Decay 1 | . . . . . . 1 . . . . . . . . Siege Activations 34 | . . . . . . . . . . . 12 12 6 4 Total Turns 433 | . . . . . . . . . . . 91 188 49 105 Longest Duration 63 | . . . . . . . . . . . 19 43 17 63 Robots Corrupted 14 | . . . . . . 1 1 . . 11 . . . 1 Combat Hostiles 1 | . . . . . . . . . . . . . . 1 Parts Fried 21 | . 1 . . . . . 2 . . 14 . . . 4 Impact Corruptions 32 | . . . . 1 . 1 1 . . 29 . . . . Robots Melted 14 | 1 3 . 3 . . . 2 1 . . 4 . . . Combat Hostiles 11 | . 3 . 2 . . . 1 1 . . 4 . . . Parts Melted 109 | 3 11 . 23 4 . 3 19 6 6 . 12 10 4 8 Heat Transferred 47527 | 1443 4151 1136 8567 1369 . 2701 9292 3093 2600 . 4152 5167 1405 2451 Parts Sabotaged . | . . . . . . . . . . . . . . . Parts Stolen . | . . . . . . . . . . . . . . . Parts Stripped . | . . . . . . . . . . . . . . . Power Chain Reactions 1 | . . . . . . . . . . . . . . 1 Alert | -11 -10 -10 -9 -9 -9 -8 -8 -8 -7 -7 -7 -7 -7 -7 ------- Run | Yrd Mat Min Mat Min Exi Min Mat Gar Fac Was Fac Low Low Zio Peak Influence 1567 | 70 222 87 654 337 . 135 718 1567 1082 326 293 . . . Initial 822 | . . 37 . 247 . . . 464 822 326 . . . . Average 228 | 35 108 9 237 100 . 27 163 1058 935 151 153 . . . Maximum Alert Level 4 | . 1 . 2 1 . . 3 4 3 1 1 . . . Low Security (%) 69 | 100 88 100 55 80 . 100 76 . . 66 70 . . . Level 1 13 | . 11 . 23 19 . . 15 . . 33 29 . . . Level 2 5 | . . . 20 . . . 3 20 . . . . . . Level 3 6 | . . . . . . . 4 26 100 . . . . . Level 4 3 | . . . . . . . . 53 . . . . . . Level 5 . | . . . . . . . . . . . . . . . High Security . | . . . . . . . . . . . . . . . Max Security . | . . . . . . . . . . . . . . . Squads Dispatched 41 | . 6 . 7 . . . 11 . 7 . 10 . . . Investigation 14 | . 2 . 2 . . . 4 . 3 . 3 . . . Extermination 6 | . . . . . . . . . 1 . 5 . . . Reinforcement 15 | . 4 . 3 . . . 4 . 2 . 2 . . . Assault 3 | . . . 2 . . . . . 1 . . . . . Garrison 3 | . . . . . . . 3 . . . . . . . Intercept . | . . . . . . . . . . . . . . . Searches Triggered . | . . . . . . . . . . . . . . . Construction Impeded 2 | . . . . . . . 1 . 1 . . . . . Haulers Reinforced 1 | . . . . . . . . . 1 . . . . . Active Scanning Responses . | . . . . . . . . . . . . . . . Cargo Convoy Interrupts . | . . . . . . . . . . . . . . . Stealth | -11 -10 -10 -9 -9 -9 -8 -8 -8 -7 -7 -7 -7 -7 -7 --------- Run | Yrd Mat Min Mat Min Exi Min Mat Gar Fac Was Fac Low Low Zio Distress Signals 12 | . 1 2 3 . . . 4 . 2 . . . . . Communications Jammed . | . . . . . . . . . . . . . . . Distress Signals . | . . . . . . . . . . . . . . . Times Spotted 296 | . 32 8 57 10 . 9 61 16 18 . 20 27 16 22 Peak Tracking Total 11 | . 6 5 5 4 . 3 7 6 4 . 3 9 4 11 Tactical Retreats 15 | . . 2 3 . . . 3 3 1 . . 1 1 1 Traps | -11 -10 -10 -9 -9 -9 -8 -8 -8 -7 -7 -7 -7 -7 -7 ------- Run | Yrd Mat Min Mat Min Exi Min Mat Gar Fac Was Fac Low Low Zio Traps Triggered 13 | . . 1 1 . . . 5 2 1 . 2 . 1 . Indirectly . | . . . . . . . . . . . . . . . Trap Hack Attempts 61 | . . 7 19 . . . 35 . . . . . . . Triggered 1 | . . 1 . . . . . . . . . . . . Disarmed 3 | . . . 2 . . . 1 . . . . . . . Reprogrammed 4 | . . 1 . . . . 3 . . . . . . . Reused . | . . . . . . . . . . . . . . . Traps Extracted 4 | . . 1 . . . . 3 . . . . . . . Installed 10 | . . . . . . . . . . . . 8 . 2 Triggered 3 | . . . . . . . . . . . . 3 . . Most Traps Carried 8 | . . 4 4 3 3 3 6 6 4 4 4 8 8 8 Machines | -11 -10 -10 -9 -9 -9 -8 -8 -8 -7 -7 -7 -7 -7 -7 ---------- Run | Yrd Mat Min Mat Min Exi Min Mat Gar Fac Was Fac Low Low Zio Machines Disabled 17 | . . . 2 . . 2 1 11 . . . 1 . . Max in Single Turn 1 | . . . 1 . . 1 1 1 . . . 1 . . Garrison Relay 6 | . . . . . . . . 6 . . . . . . Phase Generator 1 | . . . . . . . . 1 . . . . . . Machines Repaired . | . . . . . . . . . . . . . . . Machines Dismantled . | . . . . . . . . . . . . . . . Machines Sabotaged . | . . . . . . . . . . . . . . . Overloaded Fab Kills . | . . . . . . . . . . . . . . . Hacking | -11 -10 -10 -9 -9 -9 -8 -8 -8 -7 -7 -7 -7 -7 -7 --------- Run | Yrd Mat Min Mat Min Exi Min Mat Gar Fac Was Fac Low Low Zio Machines Accessed 53 | . 6 1 13 1 2 . 12 3 3 . 10 1 . 1 Terminals 27 | . 3 . 9 . . . 6 3 1 . 5 . . . Fabricators 2 | . . . . . . . . . 1 . 1 . . . Repair Stations 5 | . 1 . 2 . . . 1 . . . 1 . . . Recycling Units 8 | . 2 . 2 . . . 2 . 1 . 1 . . . Scanalyzers 4 | . . . . . . . 2 . . . 2 . . . Garrison Access 1 | . . . . . . . 1 . . . . . . . Total Hacks 143 | . 23 1 39 1 2 . 31 4 8 . 28 1 . 5 Successful 88 | . 16 1 21 1 2 . 21 2 4 . 14 1 . 5 Failed 55 | . 7 . 18 . . . 10 2 4 . 14 . . . Catastrophic 10 | . 1 . 1 . . . 2 2 1 . 3 . . . Database Lockouts . | . . . . . . . . . . . . . . . Manual 59 | . 15 . 21 . 1 . 12 1 5 . 4 . . . Terminals 76 | . 14 . 28 . . . 17 4 4 . 9 . . . Fabricators 6 | . . . . . . . . . 2 . 4 . . . Repair Stations 19 | . 5 . 6 . . . 3 . . . 5 . . . Recycling Units 18 | . 4 . 5 . . . 5 . 2 . 2 . . . Scanalyzers 13 | . . . . . . . 5 . . . 8 . . . Garrison Access 1 | . . . . . . . 1 . . . . . . . Terminal Hacks 36 | . 6 1 10 1 2 . 6 2 1 . 1 1 . 5 Record 1 | . . . . . 1 . . . . . . . . . Part Schematic 6 | . 1 . . . . . . . . . . . . 5 Robot Analysis 6 | . 4 . 1 . . . 1 . . . . . . . Prototype ID Bank 2 | . . . 2 . . . . . . . . . . . Open Door 4 | . . 1 . 1 . . . 1 . . . 1 . . Branch Access Points 2 | . . . 1 . . . . . 1 . . . . . Emergency Access Points 1 | . . . 1 . . . . . . . . . . . Alert Level 1 | . . . . . . . 1 . . . . . . . Unreport Threat 3 | . . . . . . . 3 . . . . . . . Locate Traps 1 | . . . 1 . . . . . . . . . . . Maintenance Status 1 | . . . . . . . . . . . 1 . . . Hauler Manifests 3 | . 1 . 1 . . . 1 . . . . . . . Zone Layout 3 | . . . 3 . . . . . . . . . . . Garrison Registry 1 | . . . . . . . . 1 . . . . . . Derelict Proto ID Bank 1 | . . . . . 1 . . . . . . . . . Fabricator Hacks 3 | . . . . . . . . . 1 . 2 . . . Network Status 1 | . . . . . . . . . 1 . . . . . Load Schematic 1 | . . . . . . . . . . . 1 . . . Build 1 | . . . . . . . . . . . 1 . . . Repair Station Hacks 14 | . 4 . 5 . . . 2 . . . 3 . . . Scan Component 8 | . 2 . 3 . . . 1 . . . 2 . . . Repair 6 | . 2 . 2 . . . 1 . . . 1 . . . Recycling Unit Hacks 7 | . 2 . 2 . . . 2 . . . 1 . . . Report Inventory 7 | . 2 . 2 . . . 2 . . . 1 . . . Scanalyzer 10 | . . . . . . . 5 . . . 5 . . . Insert Component 5 | . . . . . . . 2 . . . 3 . . . Analyze 5 | . . . . . . . 3 . . . 2 . . . Garrison Access Hacks 1 | . . . . . . . 1 . . . . . . . Unlock Access 1 | . . . . . . . 1 . . . . . . . Unauthorized Hacks 17 | . 4 . 4 . . . 5 . 2 . 2 . . . Terminals 9 | . 2 . 2 . . . 3 . 1 . 1 . . . Assimilate 1 | . . . . . . . 1 . . . . . . . Botnet 8 | . 2 . 2 . . . 2 . 1 . 1 . . . Fabricators 1 | . . . . . . . . . 1 . . . . . Download 1 | . . . . . . . . . 1 . . . . . Repair Stations . | . . . . . . . . . . . . . . . Recycling Units 7 | . 2 . 2 . . . 2 . . . 1 . . . Tunnel 7 | . 2 . 2 . . . 2 . . . 1 . . . Scanalyzers . | . . . . . . . . . . . . . . . Garrison Access . | . . . . . . . . . . . . . . . Data Cores Recovered . | . . . . . . . . . . . . . . . Used . | . . . . . . . . . . . . . . . Hacking Detections 38 | . 4 . 11 . . . 11 2 2 . 8 . . . Full Trace Events 7 | . 1 . 1 . . . 1 . 2 . 2 . . . Feedback Events . | . . . . . . . . . . . . . . . Feedback Blocked . | . . . . . . . . . . . . . . . Robot Schematics Acquired 4 | . . . . . . . . . 1 . . . . 3 Robots Built . | . . . . . . . . . . . . . . . Authchips . | . . . . . . . . . . . . . . . Time . | . . . . . . . . . . . . . . . Total Robot Build Rating . | . . . . . . . . . . . . . . . Part Schematics Acquired 26 | . 1 . . . . . 2 . . . 2 . . 21 Parts Built 1 | . . . . . . . . . . . 1 . . . Authchips 1 | . . . . . . . . . . . 1 . . . Time 67 | . . . . . . . . . . . 67 . . . Total Part Build Rating 4 | . . . . . . . . . . . 4 . . . Parts Repaired 6 | . 2 . 2 . . . 1 . . . 1 . . . Time 213 | . 52 . 58 . . . 64 . . . 39 . . . Parts Recycled . | . . . . . . . . . . . . . . . Recycled Matter . | . . . . . . . . . . . . . . . Retrieved Matter . | . . . . . . . . . . . . . . . Retrieved Components . | . . . . . . . . . . . . . . . Parts Scanalyzed 4 | . . . . . . . 2 . . . 2 . . . Part Schematics Acquired 4 | . . . . . . . 2 . . . 2 . . . Parts Damaged 2 | . . . . . . . 1 . . . 1 . . . Bothacking | -11 -10 -10 -9 -9 -9 -8 -8 -8 -7 -7 -7 -7 -7 -7 ------------ Run | Yrd Mat Min Mat Min Exi Min Mat Gar Fac Was Fac Low Low Zio Used RIF Installer . | . . . . . . . . . . . . . . . Robots Hacked 12 | . . . . . 3 . . . 1 . . . . 8 Non-combat 5 | . . . . . 2 . . . 1 . . . . 2 Combat 7 | . . . . . 1 . . . . . . . . 6 Robot Hacks Applied 12 | . . . . . 3 . . . 1 . . . . 8 parse_system 11 | . . . . . 3 . . . . . . . . 8 find_chute 1 | . . . . . . . . . 1 . . . . . Relay Couplers Released 22 | . . . . . . . . 22 . . . . . . Machine Destruction 22 | . . . . . . . . 22 . . . . . . Fabnet Peak Effective % . | . . . . . . . . . . . . . . . Robots Rewired 2 | . . . . . . . . . . . . 2 . . Allies Hacked 1 | . . . . . . . . . 1 . . . . . Hacks Repelled . | . . . . . . . . . . . . . . . Allies | -11 -10 -10 -9 -9 -9 -8 -8 -8 -7 -7 -7 -7 -7 -7 -------- Run | Yrd Mat Min Mat Min Exi Min Mat Gar Fac Was Fac Low Low Zio Total Allies 27 | . . . . . . . 1 2 . 20 . 2 . 2 Largest Group 20 | . . . . . . . 1 2 2 20 2 2 . 2 Highest-Rated Group 522 | . . . . . . . 10 70 70 522 53 52 . 82 Highest-Rated Ally 51 | . . . . . . . 10 39 39 35 27 32 . 51 Total Orders . | . . . . . . . . . . . . . . . Ally Attacks 48 | . . . . . . . . . 31 . . 17 . . Total Damage 915 | . . . . . . . . . 410 . . 505 . . Kills 5 | . . . . . . . . . 3 . . 2 . . Allies Corrupted 11 | . . . . . . . . . . 11 . . . . Allies Melted 2 | . . . . . . . . . 1 . . 1 . . Intel | -11 -10 -10 -9 -9 -9 -8 -8 -8 -7 -7 -7 -7 -7 -7 ------- Run | Yrd Mat Min Mat Min Exi Min Mat Gar Fac Was Fac Low Low Zio Robot Analysis Total 6 | . 4 . 1 . . . 1 . . . . . . . Derelict Logs Recovered 7 | . . 1 . 1 . . . . . . . 1 2 2 Drone Launches . | . . . . . . . . . . . . . . . Drone Recoveries . | . . . . . . . . . . . . . . . Exploration | -11 -10 -10 -9 -9 -9 -8 -8 -8 -7 -7 -7 -7 -7 -7 ------------- Run | Yrd Mat Min Mat Min Exi Min Mat Gar Fac Was Fac Low Low Zio Turns Passed 34041 | 419 1650 2173 3632 2100 972 2055 4975 1592 913 1195 1834 2008 2340 6183 Spaces Moved 11879 | 200 684 688 953 621 259 571 1267 638 384 508 824 928 906 2448 Core 14 | 7 . . . . . . . . . 7 . . . . Treads 10661 | 193 684 688 953 621 259 571 1267 39 109 265 824 928 906 2354 Legs . | . . . . . . . . . . . . . . . Wheels 1204 | . . . . . . . . 599 275 236 . . . 94 Hover . | . . . . . . . . . . . . . . . Flight . | . . . . . . . . . . . . . . . Fastest Speed 50 | 50 160 240 240 320 320 320 320 190 190 160 160 160 160 162 Average Speed 232 | 157 183 240 320 320 320 320 322 198 207 207 160 160 238 187 Slowest Speed 1900 | 160 240 240 560 320 320 320 560 330 250 1900 160 160 246 400 Overloaded Moves . | . . . . . . . . . . . . . . . Propulsion Burnouts . | . . . . . . . . . . . . . . . Robots Hopped . | . . . . . . . . . . . . . . . Cave-ins Triggered . | . . . . . . . . . . . . . . . Exploration Rate (%) 77 | 8 98 99 96 100 63 95 96 82 16 96 24 96 98 89 Regions Visited 14 Branch Regions 7 Pre-discovered Areas 10 | . 2 . 2 . 1 . 2 . . . 1 1 . 1 Known Exits Taken 6 | . . . 1 . . 1 1 . . . 1 1 1 . Unknown Exits Taken 5 | 1 1 1 . 1 1 . . . . . . . . . Scrap Searched 14 | . . 3 . 1 . 1 . . . . . 1 5 3 Spaces Dug 37 | . . . . . . . 8 . 2 . 3 12 12 . Terrain Destroyed 191 | . . . 9 . . . 17 101 2 . 3 40 18 1 Melee 5 | . . . . . . . . . 2 . 3 . . . Projectile 26 | . . . . . . . . . . . . 20 5 1 AOE 160 | . . . 9 . . . 17 101 . . . 20 13 . Terrain Rammed . | . . . . . . . . . . . . . . . Walls Destroyed . | . . . . . . . . . . . . . . . Machines Disabled . | . . . . . . . . . . . . . . . Actions | -11 -10 -10 -9 -9 -9 -8 -8 -8 -7 -7 -7 -7 -7 -7 --------- Run | Yrd Mat Min Mat Min Exi Min Mat Gar Fac Was Fac Low Low Zio Total 16686 | 254 926 1159 1285 678 405 721 1900 837 446 594 1232 1326 1043 3880 Wait 3223 | 14 124 401 125 20 126 104 365 69 23 3 327 253 88 1181 Move 11866 | 199 683 687 952 620 258 570 1266 637 384 507 823 927 905 2448 Hop . | . . . . . . . . . . . . . . . Pick Up 219 | 9 13 12 32 4 1 6 37 14 6 9 8 11 5 52 Fast Attach 60 | 7 3 2 3 . 3 . 15 . . 8 2 5 2 10 Attach 95 | . 1 . 11 1 2 5 13 . 3 . 3 19 7 30 Detach 33 | . 1 . . . 1 . 2 . 1 3 1 13 4 7 Swap 187 | . 10 11 13 4 2 2 36 32 5 8 19 26 9 10 Drop 207 | 1 11 11 23 5 9 1 35 14 3 22 7 9 5 51 Fire 599 | 24 78 21 104 20 . 29 88 62 18 . 33 50 18 54 Melee 78 | . . 1 . . 3 . . 1 3 32 3 . . 35 Ram 1 | . . . . . . . 1 . . . . . . . Kick . | . . . . . . . . . . . . . . . Crush 32 | . 2 6 3 4 . 4 7 . . . 6 . . . Escape Stasis 8 | . . . . . . . . 8 . . . . . . Rewire 7 | . . . . . . . . . . 2 . 5 . . Trap 71 | . . 7 19 . . . 35 . . . . 8 . 2 Miscellaneous . | . . . . . . . . . . . . . . . Route ------- -11/Scrapyard -10/Materials (discovered 5 exits: *Mat x3 / *Min x2) -10/Mines (discovered 3 exits: *Mat x2 / [*Sub]) -9/Materials (discovered 5 exits: *Mat x3 / *Min x2) -9/Mines (discovered 3 exits: *Mat x2 / *Exi) -9/Exiles (discovered 2 exits: [*Min x2]) -8/Mines (discovered 2 exits: *Mat x2) -8/Materials (discovered 4 exits: *Fac x3 / Gar) -8/Garrison (discovered 3 exits: *Fac x3) -7/Factory (discovered 4 exits: Sto x2 / Low x2) -7/Waste -7/Factory (discovered 2 exits: [*Fac] / *Low) -7/Lower Caves -7/Lower Caves (discovered 2 exits: [*Fac] / *Zio) -7/Zion (discovered 1 exit: [*Pro]) History --------- Turn | Location | Event 23 | -11/Scrapyard | Discovered new exit (range 15) 420 | -11/Scrapyard | Entered Materials 421 | -10/Materials | Build established: Mutant 854 | -10/Materials | Discovered new exit (range 4) 918 | -10/Materials | Discovered new exit (range 13) 1127 | -10/Materials | Discovered new exit (range 15) 1423 | -10/Materials | Discovered new exit (range 8) 1589 | -10/Materials | Discovered new exit (range 4) 1936 | -10/Materials | Repaired Lgt. Treads 1963 | -10/Materials | Repaired Lgt. Treads 2070 | -10/Materials | Entered Mines 2159 | -10/Mines | Met a Derelict who couldn't figure out how to use a Trap Extractor 2391 | -10/Mines | Core integrity fell below 50% 2562 | -10/Mines | Discovered new exit (range 7) 2631 | -10/Mines | Found a hidden stash of uninstalled traps 2800 | -10/Mines | Learned location of 1 exit from Materials 2868 | -10/Mines | Assembled infested the area 2873 | -10/Mines | Assisted by a Guerilla fighting off Assembled 3707 | -10/Mines | A weapon hastily lodged in a ceiling crevice suddenly fell to the ground 3769 | -10/Mines | Discovered new exit (range 5) 3920 | -10/Mines | Discovered new exit (range 4) 4243 | -10/Mines | Entered Materials 4243 | -9/Materials | Evolved 2 slots: Weapon x2 4244 | -9/Materials | Identified exit to Materials 4569 | -9/Materials | Build established: Gunner 5114 | -9/Materials | Discovered exit to Materials (range 14) 5659 | -9/Materials | Discovered new exit (range 13) 6224 | -9/Materials | Build established: Scavenger-Gunner 6503 | -9/Materials | Identified exit to Mines 6960 | -9/Materials | Discovered exit to Materials (range 15) 7270 | -9/Materials | Repaired Beam Rifle 7443 | -9/Materials | First assault squad dispatched 7533 | -9/Materials | Repaired Lgt. Treads 7875 | -9/Materials | Entered Mines 7932 | -9/Mines | Met a Derelict bent on vengeance 8125 | -9/Mines | Learned 2 Materials zone layouts 8134 | -9/Mines | Discovered exit to Materials (range 8) 8854 | -9/Mines | Deemed a non-threat by the Exiles lab entrance 9016 | -9/Mines | Found the Drone Emporium 9033 | -9/Mines | Found Prototype Device 9341 | -9/Mines | Core integrity fell below 50% 9471 | -9/Mines | Received a Rocket Launcher from a helpful Derelict 9571 | -9/Mines | Discovered exit to Materials (range 5) 9962 | -9/Mines | Discovered new exit (range 5) 9975 | -9/Mines | Entered Exiles 10019 | -9/Exiles | Discovered new exit (range 15) 10086 | -9/Exiles | Met 8R-AWN 10146 | -9/Exiles | Met EX-HEX 10247 | -9/Exiles | Met EX-BIN 10272 | -9/Exiles | Build established: Mutant 10319 | -9/Exiles | Aligned with FarCom system 10322 | -9/Exiles | Given EX-Vault access code 10450 | -9/Exiles | Opened EX-Vault 10467 | -9/Exiles | Found Skeleton Box 10476 | -9/Exiles | Found XL Autogun Array 10503 | -9/Exiles | Found Lightpack 2.0 10568 | -9/Exiles | Warned to stay clear of 0b10 Research branches 10592 | -9/Exiles | Exiles lab attacked by MAIN.C 10674 | -9/Exiles | Learned location of Zion (-7) 10771 | -9/Exiles | Build established: Scavenger-Mutant 10799 | -9/Exiles | Discovered new exit (range 10) 10947 | -9/Exiles | Left Exiles lab with Lightpack 2.0 10947 | -9/Exiles | Entered Mines 11256 | -8/Mines | Build established: Skirmisher 11666 | -8/Mines | Discovered exit to Materials (range 10) 12077 | -8/Mines | Discovered exit to Materials (range 8) 13002 | -8/Mines | Entered Materials 13002 | -8/Materials | Evolved 2 slots: Utility x2 13003 | -8/Materials | Identified exit to Factory 14591 | -8/Materials | Build established: Scavenger-Skirmisher 14760 | -8/Materials | Discovered exit to Factory (range 10) 15643 | -8/Materials | Repaired Broken Adv. Beam Cannon 16962 | -8/Materials | Discovered exit to Factory (range 16) 17512 | -8/Materials | Garrison activated, responded to threat 17636 | -8/Materials | Destroyed 8 combat bots 17880 | -8/Materials | Identified exit to Garrison 17977 | -8/Materials | Entered Garrison 17977 | -8/Garrison | Warlord forces raided the area 17999 | -8/Garrison | Triggered checkpoint 18023 | -8/Garrison | Garrison Relay disabled 18040 | -8/Garrison | Triggered checkpoint 18145 | -8/Garrison | Triggered checkpoint 18206 | -8/Garrison | Build established: Skirmisher 18282 | -8/Garrison | Warlord forces retreated 18295 | -8/Garrison | Triggered checkpoint 18447 | -8/Garrison | Garrison Relay disabled 18449 | -8/Garrison | Triggered checkpoint 18496 | -8/Garrison | Discovered exit to Factory (range 10) 18659 | -8/Garrison | Discovered exit to Factory (range 49) 18659 | -8/Garrison | Discovered exit to Factory (range 78) 18659 | -8/Garrison | Discovered exit to Factory (range 9) 18677 | -8/Garrison | Phase Generator disabled 18695 | -8/Garrison | Triggered checkpoint 18747 | -8/Garrison | Garrison Relay disabled 18764 | -8/Garrison | Garrison Relay disabled 18963 | -8/Garrison | Garrison Relay disabled 19305 | -8/Garrison | Triggered checkpoint 19332 | -8/Garrison | Triggered checkpoint 19420 | -8/Garrison | Garrison Relay disabled 19473 | -8/Garrison | Rescued a captive Derelict 19483 | -8/Garrison | Rescued a captive Derelict 19569 | -8/Garrison | Entered Factory 19569 | -7/Factory | Accompanied by 2 allies 19569 | -7/Factory | Evolved 2 slots: Propulsion x2 19884 | -7/Factory | Build established: Scavenger-Skirmisher 19969 | -7/Factory | First assault squad dispatched 20134 | -7/Factory | Identified exit to Storage 20134 | -7/Factory | Identified exit to Lower Caves 20482 | -7/Factory | Sucked down chute 20482 | -7/Factory | Entered Waste 20483 | -7/Waste | Joined by Warlord forces that had cleared the area 20537 | -7/Waste | Murdered 3 allies 20967 | -7/Waste | Discovered new exit (range 12) 21274 | -7/Waste | Build established: Skirmisher 21677 | -7/Waste | Entered Factory 21677 | -7/Factory | Accompanied by 2 allies 21693 | -7/Factory | Murdered 15 allies 22534 | -7/Factory | Discovered new exit (range 10) 22684 | -7/Factory | Discovered exit to Lower Caves (range 15) 23205 | -7/Factory | Repaired Broken Hvy. Treads? 23325 | -7/Factory | Fabricated Cld. Particle Cannon (x1) 23511 | -7/Factory | Entered Lower Caves 23524 | -7/Lower Caves | Met a Warlord Commander 23525 | -7/Lower Caves | Learned location of Warlord (-5) 23526 | -7/Lower Caves | Warlord Commander delivered Encrypted Comm Array 23527 | -7/Lower Caves | Found Encrypted Comm Array 23695 | -7/Lower Caves | Identified exit to Lower Caves 23829 | -7/Lower Caves | Build established: Tank 24641 | -7/Lower Caves | Attracted the attention of an 0b10 outpost 24707 | -7/Lower Caves | Destroyed 7 combat bots 24745 | -7/Lower Caves | Spotted B-75 Beast 24766 | -7/Lower Caves | Allies destroyed B-75 Beast 24997 | -7/Lower Caves | Build established: Scavenger-Tank 25340 | -7/Lower Caves | Attacked by a delusional Derelict stockpiling parts 25380 | -7/Lower Caves | Build established: Trapper-Tank 25519 | -7/Lower Caves | Entered another Lower Caves area 25551 | -7/Lower Caves | Discovered new exit (range 6) 25823 | -7/Lower Caves | Spotted B-75 Beast 25892 | -7/Lower Caves | Build established: Scavenger-Skirmisher 26041 | -7/Lower Caves | Destroyed B-75 Beast 26101 | -7/Lower Caves | Identified exit to Zion 27338 | -7/Lower Caves | Attracted the attention of an 0b10 checkpoint 27859 | -7/Lower Caves | Entered Zion 27891 | -7/Zion | Given the Hacking Drone Bay 27908 | -7/Zion | Found Prototype Device 27974 | -7/Zion | System corruption cleaned by Quarantine Array 28011 | -7/Zion | Discovered new exit (range 10) 28056 | -7/Zion | Found Prototype Energy Gun 28056 | -7/Zion | Identified Storm Laser 28163 | -7/Zion | Build established: Scavenger-Mutant 28181 | -7/Zion | Identified Hacking Drone Bay 28186 | -7/Zion | Learned Factory stockpile data 28569 | -7/Zion | Learned location of Recycling (-7) 28742 | -7/Zion | Rebuked by Imprinter 28812 | -7/Zion | Given A8's code to call for help 28911 | -7/Zion | Found Prototype Device 28959 | -7/Zion | Identified Mobile Refinery Mk. CCLXVII 29354 | -7/Zion | Gained Derelict followers 31143 | -7/Zion | Build established: Scavenger-Skirmisher 31822 | -7/Zion | Build established: Scavenger-Gunner 32049 | -7/Zion | Warned about trapping Zion interior 32435 | -7/Zion | Attacked by Zionites 32496 | -7/Zion | Lost 3 parts (1p1u1w) 32727 | -7/Zion | Build established: Scavenger-Tank 32791 | -7/Zion | Core integrity fell below 50% 32831 | -7/Zion | Lost 4 parts (1p2n1u) 33820 | -7/Zion | 7V-RTL came to Zion's defense 33877 | -7/Zion | System corruption reached 10% 33895 | -7/Zion | Core integrity fell below 20% 34042 | -7/Zion | Destroyed by 7V-RTL with Railgun Last Messages --------------- 33977_ Acquired Mak. Spear. 33980_ Slug penetrates Reinforced Barrier. 33984_ Acquired Great Maul. 33985_ YQXCLMXV,RBGSS9AGERUV9 33990_ Penetrated by Slug. 33990_ Slug penetrates IMP:G-0014175/C-0630194. 33990_ Med. Treads destroyed. 33999_ Mak. Axe follow-up attack on 7V-RTL. 34002_ Slug penetrates Reinforced Barrier. 34005_ Penetrated by Slug. 34005_ Slug penetrates IMP:G-0014175/C-0630194. 34008_ Penetrated by Slug. 34010_ System corrupted: Matter fused (-7). 34010_ 7V-RTL suffers critical hit (Impale). 34021_ Mak. Axe follow-up attack on 7V-RTL. 34021_ 7V-RTL Unknown Protection severed. 34021_ Carbon-fiber Leg destroyed. 34034_ =OI,7Z